[Event "FIDE U16 Olympiad_boards_81-124"]
[Site "Eindhoven, Netherlands"]
[Date "2023.08.13"]
[Round "1.30"]
[White "Chao, Tzu-Yi Anderson"]
[Black "Pedmanson, Albert"]
[Result "0-1"]
[TimeControl "45min+10sec"]
[WhiteElo "1347"]
[BlackElo "1882"]

1. e4 {[%emt 00:00:04]} e5 {[%clk 00:45:18]} 2. Nf3 {[%clk 00:45:25]} {[%emt
00:00:03]} Nc6 {[%clk 00:45:26]} {[%emt 00:00:02]} 3. Bc4 {[%clk 00:45:27]}
{[%emt 00:00:08]} Nf6 {[%clk 00:45:32]} {[%emt 00:00:04]} 4. d3 {[%clk
00:45:24]} {[%emt 00:00:12]} Bc5 {[%clk 00:45:27]} {[%emt 00:00:15]} 5. c3
{[%clk 00:45:22]} {[%emt 00:00:12]} d6 {[%clk 00:45:31]} {[%emt 00:00:06]} 6.
O-O {[%clk 00:45:11]} {[%emt 00:00:22]} O-O {[%clk 00:45:27]} {[%emt 00:00:14]}
7. Re1 {[%clk 00:45:03]} {[%emt 00:00:18]} h6 {[%clk 00:44:41]} {[%emt
00:00:57]} 8. h3 {[%clk 00:44:47]} {[%emt 00:00:25]} Bb6 {[%clk 00:44:26]}
{[%emt 00:00:25]} 9. Nbd2 {[%clk 00:43:01]} {[%emt 00:01:56]} Ne7 {[%clk
00:40:31]} {[%emt 00:04:05]} 10. Nf1 {[%clk 00:42:00]} {[%emt 00:01:10]} Ng6
{[%clk 00:40:39]} {[%emt 00:00:03]} 11. Ng3 {[%clk 00:41:10]} {[%emt 00:00:59]}
Re8 {[%emt 00:04:16]} 12. b4 {[%clk 00:38:54]} c6 {[%clk 00:37:13]} {[%emt
00:01:56]} 13. a4 {[%clk 00:38:02]} {[%emt 00:01:02]} d5 {[%clk 00:36:53]}
{[%emt 00:00:32]} 14. Bb3 {[%clk 00:35:10]} {[%emt 00:03:00]} Bc7 {[%clk
00:34:40]} {[%emt 00:02:23]} 15. Be3 {[%clk 00:32:31]} {[%emt 00:02:49]} Be6
{[%clk 00:34:40]} {[%emt 00:00:12]} 16. Qc2 {[%clk 00:29:38]} {[%emt 00:03:01]}
Nh7 {[%clk 00:30:57]} {[%emt 00:03:54]} 17. Rad1 {[%clk 00:27:28]} {[%emt
00:02:20]} Nh4 {[%clk 00:30:42]} {[%emt 00:00:24]} 18. Nxh4 {[%clk 00:23:15]}
{[%emt 00:04:24]} Qxh4 {[%clk 00:30:49]} {[%emt 00:00:04]} 19. Qe2 {[%clk
00:21:50]} {[%emt 00:01:34]} Rad8 {[%clk 00:21:18]} {[%emt 00:09:40]} 20. Bc1
{[%clk 00:20:54]} {[%emt 00:01:07]} Bb6 {[%clk 00:20:24]} {[%emt 00:01:05]} 21.
Nh1 {[%clk 00:08:55]} {[%emt 00:12:08]} Ng5 {[%clk 00:19:39]} {[%emt 00:00:56]}
22. Bxg5 {[%clk 00:07:25]} {[%emt 00:01:40]} Qxg5 {[%clk 00:19:47]} {[%emt
00:00:02]} 23. Kf1 {[%clk 00:06:33]} {[%emt 00:01:01]} h5 {[%clk 00:18:48]}
{[%emt 00:01:09]} 24. a5 {[%clk 00:06:33]} {[%emt 00:00:10]} Bc7 {[%clk
00:18:47]} {[%emt 00:00:11]} 25. Qe3 {[%clk 00:05:46]} {[%emt 00:00:57]} Qf6
{[%clk 00:16:55]} {[%emt 00:02:03]} 26. Qe2 {[%clk 00:02:50]} {[%emt 00:03:05]}
h4 {[%clk 00:16:53]} {[%emt 00:00:12]} 27. Bc2 {[%clk 00:02:44]} {[%emt
00:00:16]} d4 {[%clk 00:15:09]} {[%emt 00:01:54]} 28. c4 {[%clk 00:02:47]}
{[%emt 00:00:07]} c5 {[%clk 00:15:11]} {[%emt 00:00:08]} 29. Ba4 {[%clk
00:02:16]} {[%emt 00:00:41]} Re7 {[%clk 00:15:08]} {[%emt 00:00:13]} 30. Qd2
{[%clk 00:01:52]} {[%emt 00:00:34]} cxb4 {[%clk 00:14:13]} {[%emt 00:01:05]} 31.
Qxb4 {[%clk 00:02:01]} {[%emt 00:00:02]} Rd6 {[%clk 00:14:22]} {[%emt
00:00:01]} 32. Bb5 {[%clk 00:01:53]} {[%emt 00:00:18]} Bxh3 {[%clk 00:13:58]}
{[%emt 00:00:33]} 33. gxh3 {[%clk 00:01:55]} {[%emt 00:00:08]} Qf3 {[%clk
00:14:07]} 34. c5 {[%clk 00:00:35]} {[%emt 00:01:30]} Rf6 {[%clk 00:13:54]}
{[%emt 00:00:24]} 35. c6 {[%clk 00:00:13]} {[%emt 00:00:32]} Bd6 {[%clk
00:13:59]} {[%emt 00:00:04]} 36. Qb2 {[%clk 00:00:22]} {[%emt 00:00:01]} Qxh1+
{[%clk 00:13:37]} {[%emt 00:00:32]} 37. Ke2 {[%clk 00:00:29]} {[%emt 00:00:03]}
Rxf2+ {[%clk 00:13:19]} {[%emt 00:00:28]} 38. Kxf2 {[%clk 00:00:33]} {[%emt
00:00:05]} Qh2+ {[%clk 00:13:28]} {[%emt 00:00:02]} 39. Kf1 {[%clk 00:00:21]}
{[%emt 00:00:22]} Qxb2 {[%clk 00:13:35]} {[%emt 00:00:03]} 40. Rb1 {[%clk
00:00:16]} {[%emt 00:00:15]} Qh2 {[%clk 00:13:35]} {[%emt 00:00:10]} 0-1

[Event "FIDE U16 Olympiad_boards_81-124"]
[Site "Eindhoven, Netherlands"]
[Date "2023.08.13"]
[Round "1.31"]
[White "Mikko, Rondo"]
[Black "Hsu, Che"]
[Result "1-0"]
[TimeControl "45min+10sec"]
[WhiteElo "2169"]
[BlackElo "1374"]

1. Nf3 {[%clk 00:44:45]} {[%emt 00:00:35]} d5 {[%clk 00:45:13]} {[%emt
00:00:08]} 2. d4 {[%clk 00:44:25]} {[%emt 00:00:30]} Nf6 {[%clk 00:45:16]}
{[%emt 00:00:07]} 3. Bf4 {[%clk 00:43:49]} {[%emt 00:00:46]} Bf5 {[%clk
00:44:41]} {[%emt 00:00:45]} 4. e3 {[%clk 00:42:44]} {[%emt 00:01:14]} e6
{[%clk 00:44:41]} {[%emt 00:00:10]} 5. Nbd2 {[%clk 00:32:24]} {[%emt 00:10:31]}
Bd6 {[%clk 00:42:04]} {[%emt 00:02:48]} 6. Bxd6 {[%clk 00:30:52]} {[%emt
00:01:41]} Qxd6 {[%clk 00:40:33]} {[%emt 00:01:40]} 7. c4 {[%clk 00:30:52]}
{[%emt 00:00:11]} c6 {[%clk 00:38:24]} {[%emt 00:02:20]} 8. Be2 {[%clk
00:28:32]} {[%emt 00:02:29]} Nbd7 {[%clk 00:38:11]} {[%emt 00:00:22]} 9. Rc1
{[%clk 00:27:15]} {[%emt 00:01:27]} O-O {[%clk 00:36:59]} {[%emt 00:01:23]} 10.
O-O {[%clk 00:27:21]} {[%emt 00:00:04]} h6 {[%clk 00:36:00]} {[%emt 00:01:09]}
11. Qb3 {[%clk 00:26:10]} {[%emt 00:01:21]} Rab8 {[%clk 00:30:46]} {[%emt
00:05:24]} 12. Qa4 {[%clk 00:21:48]} {[%emt 00:04:32]} a6 {[%clk 00:28:57]}
{[%emt 00:01:59]} 13. Qa3 {[%clk 00:16:52]} {[%emt 00:05:06]} Qxa3 {[%clk
00:28:08]} {[%emt 00:00:59]} 14. bxa3 {[%clk 00:17:00]} Ne4 {[%clk 00:24:26]}
{[%emt 00:03:52]} 15. c5 {[%clk 00:14:45]} {[%emt 00:02:26]} Bg4 {[%clk
00:22:30]} {[%emt 00:02:05]} 16. Nb3 {[%clk 00:11:51]} {[%emt 00:03:04]} Ng5
{[%clk 00:19:49]} {[%emt 00:02:51]} 17. h4 {[%clk 00:10:37]} {[%emt 00:01:25]}
Nxf3+ {[%clk 00:19:29]} {[%emt 00:00:30]} 18. gxf3 {[%clk 00:10:44]} {[%emt
00:00:03]} Bh3 {[%clk 00:17:44]} {[%emt 00:01:55]} 19. Rfe1 {[%clk 00:10:11]}
{[%emt 00:00:43]} Bf5 {[%clk 00:16:36]} {[%emt 00:01:18]} 20. Na5 {[%clk
00:09:09]} {[%emt 00:01:12]} g5 {[%clk 00:14:58]} {[%emt 00:01:48]} 21. hxg5
{[%clk 00:09:05]} {[%emt 00:00:13]} hxg5 {[%clk 00:15:07]} {[%emt 00:00:02]} 22.
Rc3 {[%clk 00:09:06]} {[%emt 00:00:09]} Kg7 {[%clk 00:06:30]} {[%emt 00:08:46]}
23. Kg2 {[%clk 00:08:54]} {[%emt 00:00:22]} Rh8 {[%clk 00:06:16]} {[%emt
00:00:24]} 24. Rh1 {[%clk 00:09:02]} {[%emt 00:00:02]} Rxh1 {[%clk 00:05:58]}
{[%emt 00:00:28]} 25. Kxh1 {[%clk 00:09:11]} Bb1 {[%clk 00:03:47]} {[%emt
00:02:22]} 26. Rb3 {[%clk 00:08:58]} {[%emt 00:00:22]} Bxa2 {[%clk 00:03:54]}
{[%emt 00:00:03]} 27. Rb2 {[%clk 00:07:06]} {[%emt 00:02:03]} Bc4 {[%clk
00:03:44]} {[%emt 00:00:20]} 28. Bxc4 {[%clk 00:07:13]} {[%emt 00:00:02]} dxc4
{[%clk 00:03:51]} {[%emt 00:00:04]} 29. Nxc4 {[%clk 00:07:20]} {[%emt
00:00:02]} Kf6 {[%clk 00:02:40]} {[%emt 00:01:21]} 30. Na5 {[%clk 00:04:07]}
{[%emt 00:03:24]} b6 {[%clk 00:02:17]} {[%emt 00:00:33]} 31. Nxc6 {[%clk
00:03:48]} {[%emt 00:00:29]} Rh8+ {[%clk 00:02:25]} {[%emt 00:00:02]} 32. Kg2
{[%clk 00:03:53]} {[%emt 00:00:04]} bxc5 {[%clk 00:02:12]} {[%emt 00:00:24]} 33.
Rb7 {[%clk 00:04:00]} {[%emt 00:00:03]} Rc8 {[%clk 00:00:41]} {[%emt 00:01:40]}
34. Na5 {[%clk 00:02:35]} {[%emt 00:01:37]} Ke7 {[%clk 00:00:18]} {[%emt
00:00:32]} 35. Nc4 {[%clk 00:01:03]} {[%emt 00:01:42]} cxd4 {[%emt 00:00:56]}
36. Ne5 {[%emt 00:00:08]} 1-0

[Event "FIDE U16 Olympiad_boards_81-124"]
[Site "Eindhoven, Netherlands"]
[Date "2023.08.13"]
[Round "1.32"]
[White "Wang, Yushin Andrea"]
[Black "Pool, Linda Maria"]
[Result "1-0"]
[TimeControl "45min+10sec"]
[WhiteElo "1186"]
[BlackElo "1428"]

1. e4 {[%clk 00:45:18]} e6 {[%clk 00:45:19]} {[%emt 00:00:02]} 2. Nf3 {[%clk
00:45:24]} {[%emt 00:00:03]} d5 {[%clk 00:45:27]} {[%emt 00:00:02]} 3. Nc3
{[%clk 00:45:29]} {[%emt 00:00:05]} Nf6 {[%clk 00:44:47]} {[%emt 00:00:51]} 4.
e5 {[%clk 00:45:18]} {[%emt 00:00:20]} Nfd7 {[%clk 00:44:54]} {[%emt 00:00:03]}
5. d4 {[%clk 00:45:19]} {[%emt 00:00:09]} c5 {[%clk 00:44:59]} {[%emt
00:00:05]} 6. dxc5 {[%clk 00:45:13]} {[%emt 00:00:16]} Bxc5 {[%clk 00:45:02]}
{[%emt 00:00:07]} 7. Bd3 {[%clk 00:45:13]} {[%emt 00:00:10]} Nc6 {[%clk
00:44:36]} {[%emt 00:00:37]} 8. Bf4 {[%clk 00:45:09]} {[%emt 00:00:14]} a6
{[%clk 00:43:44]} {[%emt 00:01:01]} 9. O-O {[%clk 00:44:59]} {[%emt 00:00:19]}
h6 {[%clk 00:33:42]} {[%emt 00:10:13]} 10. Qe2 {[%clk 00:44:14]} {[%emt
00:00:55]} Nb4 {[%clk 00:32:39]} {[%emt 00:01:13]} 11. a3 {[%clk 00:40:22]}
{[%emt 00:04:02]} Nxd3 {[%clk 00:32:45]} {[%emt 00:00:05]} 12. Qxd3 {[%clk
00:39:44]} {[%emt 00:00:47]} O-O {[%clk 00:31:34]} {[%emt 00:01:20]} 13. Rad1
{[%clk 00:33:51]} {[%emt 00:06:03]} b5 {[%clk 00:30:14]} {[%emt 00:01:31]} 14.
Be3 {[%clk 00:31:53]} {[%emt 00:02:08]} Bb7 {[%clk 00:25:11]} {[%emt 00:05:13]}
15. Bxc5 {[%clk 00:28:56]} {[%emt 00:03:06]} Nxc5 {[%clk 00:25:20]} {[%emt
00:00:01]} 16. Qd4 {[%clk 00:28:18]} {[%emt 00:00:49]} Rc8 {[%clk 00:25:00]}
{[%emt 00:00:29]} 17. Rfe1 {[%clk 00:25:55]} {[%emt 00:02:33]} Qc7 {[%clk
00:24:18]} {[%emt 00:00:52]} 18. Re3 {[%emt 00:04:32]} Rfd8 {[%clk 00:22:58]}
19. Qg4 {[%clk 00:19:41]} {[%emt 00:03:32]} Nd7 {[%clk 00:20:46]} {[%emt
00:02:23]} 20. Rd4 {[%clk 00:16:35]} {[%emt 00:03:16]} Nf8 {[%clk 00:16:28]}
{[%emt 00:04:28]} 21. Nh4 {[%clk 00:14:38]} {[%emt 00:02:06]} Qe7 {[%clk
00:11:47]} {[%emt 00:04:52]} 22. Rg3 {[%clk 00:12:52]} {[%emt 00:01:56]} g6
{[%clk 00:09:27]} {[%emt 00:02:30]} 23. f4 {[%clk 00:10:12]} {[%emt 00:02:50]}
Kh7 {[%clk 00:05:04]} {[%emt 00:04:33]} 24. f5 {[%clk 00:06:18]} {[%emt
00:04:03]} exf5 {[%clk 00:04:14]} {[%emt 00:01:01]} 25. Nxf5 {[%clk 00:06:24]}
{[%emt 00:00:04]} Qxe5 {[%clk 00:04:05]} {[%emt 00:00:19]} 26. Rf4 {[%clk
00:02:35]} {[%emt 00:03:58]} Ne6 {[%clk 00:02:15]} {[%emt 00:02:00]} 27. Qh4
{[%clk 00:00:30]} {[%emt 00:02:15]} gxf5 {[%clk 00:01:01]} {[%emt 00:01:25]} 28.
Qxh6+ {[%clk 00:00:17]} {[%emt 00:00:23]} Kxh6 {[%clk 00:01:01]} {[%emt
00:00:10]} 29. Rh4# {[%clk 00:00:13]} {[%emt 00:00:02]} 1-0

[Event "FIDE U16 Olympiad_boards_81-124"]
[Site "Eindhoven, Netherlands"]
[Date "2023.08.13"]
[Round "1.33"]
[White "Sacco, Isaac"]
[Black "Hobson, Kenneth"]
[Result "0-1"]
[TimeControl "45min+10sec"]
[WhiteElo "1272"]
[BlackElo "1851"]

1. e4 {[%clk 00:45:19]} e5 {[%clk 00:45:18]} {[%emt 00:00:02]} 2. Nf3 {[%clk
00:45:27]} {[%emt 00:00:02]} Nc6 {[%clk 00:45:23]} {[%emt 00:00:05]} 3. Bc4
{[%clk 00:45:35]} {[%emt 00:00:02]} Nf6 {[%clk 00:45:23]} {[%emt 00:00:09]} 4.
d4 {[%clk 00:45:40]} {[%emt 00:00:06]} exd4 {[%clk 00:45:16]} {[%emt 00:00:16]}
5. O-O {[%clk 00:45:46]} {[%emt 00:00:04]} Nxe4 {[%clk 00:45:02]} {[%emt
00:00:24]} 6. Re1 {[%clk 00:45:54]} {[%emt 00:00:03]} d5 {[%clk 00:45:01]}
{[%emt 00:00:11]} 7. Bxd5 {[%clk 00:45:55]} {[%emt 00:00:09]} Qxd5 {[%clk
00:45:08]} {[%emt 00:00:02]} 8. Nc3 {[%clk 00:46:04]} {[%emt 00:00:02]} Qh5
{[%clk 00:44:25]} {[%emt 00:00:53]} 9. Nxe4 {[%clk 00:45:35]} {[%emt 00:00:38]}
Be6 {[%clk 00:43:27]} {[%emt 00:01:09]} 10. Nxd4 {[%clk 00:43:55]} {[%emt
00:01:49]} Qxd1 {[%clk 00:42:31]} {[%emt 00:01:07]} 11. Rxd1 {[%clk 00:44:01]}
{[%emt 00:00:03]} O-O-O {[%clk 00:41:08]} {[%emt 00:01:33]} 12. Be3 {[%clk
00:43:24]} {[%emt 00:00:47]} Nxd4 {[%clk 00:39:08]} {[%emt 00:02:11]} 13. Bxd4
{[%clk 00:43:21]} {[%emt 00:00:12]} Bd5 {[%clk 00:37:34]} {[%emt 00:01:46]} 14.
Nc3 {[%clk 00:40:42]} {[%emt 00:02:41]} Bc6 {[%clk 00:36:54]} {[%emt 00:00:57]}
15. Bxa7 {[%clk 00:39:59]} {[%emt 00:00:54]} Rxd1+ {[%clk 00:35:35]} {[%emt
00:01:29]} 16. Rxd1 {[%clk 00:39:42]} {[%emt 00:00:24]} b6 {[%clk 00:35:09]}
{[%emt 00:00:37]} 17. a4 {[%clk 00:38:35]} {[%emt 00:01:18]} Kb7 {[%clk
00:34:12]} {[%emt 00:01:07]} 18. a5 {[%clk 00:37:30]} {[%emt 00:01:14]} Kxa7
{[%clk 00:33:53]} {[%emt 00:00:30]} 19. axb6+ {[%clk 00:37:31]} {[%emt
00:00:09]} cxb6 {[%clk 00:33:04]} {[%emt 00:00:59]} 20. Rd8 {[%clk 00:36:51]}
{[%emt 00:00:49]} g6 {[%clk 00:32:31]} {[%emt 00:00:44]} 21. b4 {[%clk
00:36:06]} {[%emt 00:00:53]} Bg7 {[%clk 00:32:07]} {[%emt 00:00:36]} 22. Rd3
{[%clk 00:35:32]} {[%emt 00:00:36]} Re8 {[%clk 00:31:49]} {[%emt 00:00:35]} 23.
Kf1 {[%clk 00:35:06]} {[%emt 00:00:35]} Bxc3 {[%clk 00:31:39]} {[%emt
00:00:22]} 24. Rxc3 {[%clk 00:35:10]} {[%emt 00:00:05]} Bb5+ {[%clk 00:31:41]}
{[%emt 00:00:09]} 25. Rd3 {[%clk 00:34:47]} {[%emt 00:00:31]} Bxd3+ {[%clk
00:31:47]} {[%emt 00:00:06]} 26. cxd3 {[%emt 00:00:04]} Ka6 {[%clk 00:31:52]}
{[%emt 00:00:03]} 27. g4 {[%clk 00:34:54]} {[%emt 00:00:11]} Kb5 {[%clk
00:31:58]} {[%emt 00:00:03]} 28. f4 {[%clk 00:34:54]} {[%emt 00:00:10]} Kxb4
{[%clk 00:32:06]} {[%emt 00:00:03]} 29. h4 {[%clk 00:34:55]} {[%emt 00:00:09]}
Kc3 {[%clk 00:32:12]} {[%emt 00:00:05]} 30. g5 {[%clk 00:34:23]} {[%emt
00:00:41]} Kxd3 {[%clk 00:32:16]} {[%emt 00:00:05]} 31. Kg2 {[%clk 00:34:30]}
{[%emt 00:00:03]} Ke3 {[%clk 00:32:20]} {[%emt 00:00:06]} 32. Kg3 {[%clk
00:34:38]} {[%emt 00:00:03]} b5 {[%clk 00:32:24]} {[%emt 00:00:06]} 33. Kg4
{[%clk 00:34:45]} {[%emt 00:00:02]} b4 {[%clk 00:32:27]} {[%emt 00:00:08]} 34.
f5 {[%clk 00:34:52]} {[%emt 00:00:03]} gxf5+ {[%clk 00:32:32]} {[%emt
00:00:05]} 35. Kxf5 {[%clk 00:35:01]} {[%emt 00:00:01]} b3 {[%clk 00:32:35]}
{[%emt 00:00:07]} 36. Kf6 {[%clk 00:35:06]} {[%emt 00:00:05]} b2 {[%clk
00:32:38]} {[%emt 00:00:07]} 37. Kxf7 {[%clk 00:35:13]} {[%emt 00:00:02]} Rb8
{[%clk 00:32:40]} {[%emt 00:00:08]} 38. h5 {[%clk 00:35:04]} {[%emt 00:00:19]}
b1=Q {[%clk 00:32:45]} {[%emt 00:00:06]} 39. Kg7 {[%clk 00:34:50]} {[%emt
00:00:23]} Qf5 {[%clk 00:32:38]} {[%emt 00:00:18]} 40. g6 {[%clk 00:34:39]}
{[%emt 00:00:21]} Qf8+ {[%clk 00:32:26]} {[%emt 00:00:22]} 41. Kxh7 {[%clk
00:33:58]} {[%emt 00:00:34]} Qh8# {[%clk 00:32:26]} 0-1

[Event "FIDE U16 Olympiad_boards_81-124"]
[Site "Eindhoven, Netherlands"]
[Date "2023.08.13"]
[Round "1.34"]
[White "Khoury, Theo"]
[Black "Ellul, Nicole"]
[Result "1-0"]
[TimeControl "45min+10sec"]
[WhiteElo "1865"]
[BlackElo "1251"]

1. e4 {[%clk 00:45:13]} {[%emt 00:00:06]} g6 {[%clk 00:45:19]} {[%emt
00:00:02]} 2. d4 {[%clk 00:45:18]} {[%emt 00:00:04]} Bg7 {[%clk 00:45:27]}
{[%emt 00:00:03]} 3. Nf3 {[%clk 00:45:24]} {[%emt 00:00:03]} d6 {[%clk
00:45:35]} {[%emt 00:00:02]} 4. c3 {[%clk 00:45:32]} {[%emt 00:00:02]} Nf6
{[%clk 00:45:19]} {[%emt 00:00:27]} 5. Bd3 {[%clk 00:45:40]} {[%emt 00:00:01]}
Nbd7 {[%clk 00:45:19]} {[%emt 00:00:12]} 6. O-O {[%clk 00:45:23]} {[%emt
00:00:25]} e5 {[%clk 00:44:54]} {[%emt 00:00:36]} 7. Re1 {[%clk 00:45:16]}
{[%emt 00:00:17]} O-O {[%clk 00:44:43]} {[%emt 00:00:21]} 8. Nbd2 {[%clk
00:45:02]} {[%emt 00:00:23]} Qe7 {[%clk 00:43:28]} {[%emt 00:01:25]} 9. Nf1
{[%clk 00:42:53]} {[%emt 00:02:19]} c5 {[%clk 00:42:10]} {[%emt 00:01:28]} 10.
Bg5 {[%clk 00:41:14]} {[%emt 00:01:50]} b6 {[%clk 00:38:47]} {[%emt 00:03:32]}
11. Qd2 {[%clk 00:40:16]} {[%emt 00:01:08]} Ne8 {[%clk 00:36:49]} {[%emt
00:02:09]} 12. Bxe7 {[%clk 00:40:23]} {[%emt 00:00:03]} 1-0

[Event "FIDE U16 Olympiad_boards_81-124"]
[Site "Eindhoven, Netherlands"]
[Date "2023.08.13"]
[Round "1.36"]
[White "Rida, Ruqayyah"]
[Black "Gauci, Andre"]
[Result "1-0"]
[TimeControl "45min+10sec"]
[WhiteElo "1765"]
[BlackElo "1277"]

1. e4 {[%clk 00:45:18]} c5 {[%clk 00:45:17]} {[%emt 00:00:04]} 2. Nf3 {[%clk
00:45:27]} {[%emt 00:00:02]} d6 {[%clk 00:45:21]} {[%emt 00:00:06]} 3. d4
{[%clk 00:45:35]} {[%emt 00:00:01]} cxd4 {[%clk 00:45:24]} {[%emt 00:00:06]} 4.
Nxd4 {[%clk 00:45:43]} {[%emt 00:00:03]} Nf6 {[%clk 00:45:28]} {[%emt
00:00:07]} 5. Nc3 {[%clk 00:45:51]} {[%emt 00:00:02]} g6 {[%clk 00:45:30]}
{[%emt 00:00:08]} 6. Be3 {[%clk 00:45:58]} {[%emt 00:00:03]} Bg7 {[%clk
00:45:31]} {[%emt 00:00:09]} 7. f3 {[%clk 00:46:06]} {[%emt 00:00:02]} O-O
{[%clk 00:45:29]} {[%emt 00:00:12]} 8. Qd2 {[%clk 00:46:13]} {[%emt 00:00:03]}
Nc6 {[%clk 00:45:29]} {[%emt 00:00:10]} 9. O-O-O {[%clk 00:46:14]} {[%emt
00:00:09]} Bd7 {[%clk 00:45:29]} {[%emt 00:00:10]} 10. h4 {[%clk 00:46:10]}
{[%emt 00:00:14]} Rb8 {[%clk 00:44:56]} {[%emt 00:00:42]} 11. g4 {[%clk
00:45:12]} {[%emt 00:01:08]} b5 {[%clk 00:41:31]} {[%emt 00:03:36]} 12. h5
{[%clk 00:30:33]} {[%emt 00:14:49]} Ne5 {[%clk 00:33:53]} {[%emt 00:07:48]} 13.
Bh6 {[%clk 00:28:26]} {[%emt 00:02:17]} Nc4 {[%clk 00:22:48]} {[%emt 00:11:14]}
14. Bxc4 {[%clk 00:25:57]} {[%emt 00:02:39]} bxc4 {[%clk 00:22:26]} {[%emt
00:00:31]} 15. Bxg7 {[%clk 00:25:31]} {[%emt 00:00:38]} Kxg7 {[%clk 00:21:15]}
{[%emt 00:01:20]} 16. Nd5 {[%clk 00:19:18]} {[%emt 00:06:23]} Rh8 {[%clk
00:16:25]} {[%emt 00:05:01]} 17. Nxf6 {[%clk 00:18:35]} {[%emt 00:00:52]} exf6
{[%clk 00:16:07]} {[%emt 00:00:27]} 18. Qc3 {[%clk 00:14:21]} {[%emt 00:04:25]}
Qb6 {[%clk 00:12:37]} {[%emt 00:03:40]} 19. g5 {[%clk 00:13:15]} {[%emt
00:01:17]} Rb7 {[%clk 00:09:24]} {[%emt 00:03:22]} 20. Nf5+ {[%clk 00:10:58]}
{[%emt 00:02:27]} Bxf5 {[%clk 00:07:03]} {[%emt 00:02:31]} 21. Qxf6+ {[%clk
00:11:02]} {[%emt 00:00:07]} Kg8 {[%clk 00:05:36]} {[%emt 00:01:37]} 22. h6
{[%clk 00:10:44]} {[%emt 00:00:27]} Qe3+ {[%clk 00:04:09]} {[%emt 00:01:37]} 23.
Kb1 {[%clk 00:09:24]} {[%emt 00:01:30]} Kf8 {[%clk 00:03:42]} {[%emt 00:00:38]}
24. Qd8# {[%clk 00:09:30]} {[%emt 00:00:03]} 1-0

[Event "FIDE U16 Olympiad_boards_81-124"]
[Site "Eindhoven, Netherlands"]
[Date "2023.08.13"]
[Round "1.37"]
[White "Ritzerveld, Noah"]
[Black "Dokoria, Daniel"]
[Result "1-0"]
[TimeControl "45min+10sec"]
[WhiteElo "1959"]
[BlackElo "1252"]

1. e4 {[%clk 00:45:17]} {[%emt 00:00:03]} e5 {[%clk 00:45:19]} {[%emt
00:00:01]} 2. Nf3 {[%clk 00:45:24]} {[%emt 00:00:02]} Nc6 {[%clk 00:45:27]}
{[%emt 00:00:02]} 3. Bc4 {[%clk 00:45:22]} {[%emt 00:00:12]} Bc5 {[%clk
00:45:26]} {[%emt 00:00:12]} 4. c3 {[%clk 00:45:26]} {[%emt 00:00:05]} Nf6
{[%clk 00:45:30]} {[%emt 00:00:05]} 5. d4 {[%clk 00:45:17]} {[%emt 00:00:21]}
exd4 {[%clk 00:45:19]} {[%emt 00:00:20]} 6. e5 {[%clk 00:45:10]} {[%emt
00:00:17]} Ng4 {[%clk 00:44:37]} {[%emt 00:00:52]} 7. cxd4 {[%clk 00:45:13]}
{[%emt 00:00:07]} Be7 {[%clk 00:44:29]} {[%emt 00:00:19]} 8. h3 {[%clk
00:44:34]} {[%emt 00:00:48]} Nh6 {[%clk 00:42:44]} {[%emt 00:01:55]} 9. O-O
{[%clk 00:43:13]} {[%emt 00:01:31]} d5 {[%clk 00:41:25]} {[%emt 00:01:30]} 10.
Bb5 {[%clk 00:41:34]} {[%emt 00:01:48]} Bd7 {[%clk 00:40:59]} {[%emt 00:00:35]}
11. Nc3 {[%clk 00:41:19]} {[%emt 00:00:26]} a6 {[%clk 00:35:07]} {[%emt
00:06:02]} 12. Bd3 {[%clk 00:40:27]} {[%emt 00:01:02]} Bf5 {[%clk 00:30:37]}
{[%emt 00:04:39]} 13. Bxh6 {[%clk 00:36:53]} {[%emt 00:03:45]} Bxd3 {[%clk
00:30:38]} {[%emt 00:00:09]} 14. Qxd3 {[%clk 00:34:16]} {[%emt 00:02:47]} gxh6
{[%clk 00:29:11]} {[%emt 00:01:37]} 15. Qf5 {[%clk 00:33:55]} {[%emt 00:00:32]}
Bb4 {[%clk 00:23:43]} {[%emt 00:05:37]} 16. e6 {[%clk 00:33:08]} {[%emt
00:00:58]} fxe6 {[%clk 00:21:49]} {[%emt 00:02:04]} 17. Qxe6+ {[%clk 00:32:34]}
{[%emt 00:00:42]} Qe7 {[%clk 00:20:56]} {[%emt 00:01:03]} 18. Qxd5 {[%clk
00:32:14]} {[%emt 00:00:30]} Rd8 {[%clk 00:12:57]} {[%emt 00:08:09]} 19. Qh5+
{[%clk 00:31:19]} {[%emt 00:01:06]} Qf7 {[%clk 00:08:45]} {[%emt 00:04:23]} 20.
Rfe1+ {[%clk 00:30:57]} {[%emt 00:00:31]} Kf8 {[%clk 00:05:51]} {[%emt
00:03:03]} 21. Qxh6+ {[%clk 00:30:55]} {[%emt 00:00:12]} Kg8 {[%clk 00:05:17]}
{[%emt 00:00:43]} 22. Ng5 {[%clk 00:30:48]} {[%emt 00:00:19]} Qg6 {[%clk
00:04:49]} {[%emt 00:00:38]} 23. Qxg6+ {[%clk 00:28:54]} {[%emt 00:02:04]} hxg6
{[%clk 00:04:54]} {[%emt 00:00:05]} 24. Re6 {[%clk 00:27:58]} {[%emt 00:01:06]}
Kg7 {[%clk 00:03:03]} {[%emt 00:01:59]} 25. a3 {[%clk 00:26:47]} {[%emt
00:01:24]} Bxc3 {[%clk 00:00:58]} {[%emt 00:02:13]} 26. bxc3 {[%clk 00:26:54]}
{[%emt 00:00:03]} Rde8 {[%clk 00:00:47]} {[%emt 00:00:21]} 27. Rae1 {[%clk
00:27:00]} {[%emt 00:00:05]} Rxe6 {[%clk 00:00:00]} {[%emt 00:00:47]} 28. Nxe6+
{[%emt 00:00:10]} 1-0